fUSD/lending_fUSD_20260505
["ID","MTS","AMOUNT","RATE_DAILY","PERIOD"]
[421601694,1777938758000,-5000.0,0.00042487,60]
[421601695,1777938758000,-1037.22,0.00042487,60]
[421601699,1777938758000,-1037.22,0.00042487,60]
[421601698,1777938758000,-1037.22,0.00042487,60]
[421601710,1777938758000,-500.0,0.00042487,60]
[421601709,1777938758000,-500.0,0.00042487,60]
[421601700,1777938758000,-263.0,0.00042487,120]
[421601702,1777938758000,-500.0,0.00042487,60]
[421601706,1777938758000,-500.0,0.00042487,60]
[421601708,1777938758000,-500.0,0.00042487,60]
[421601707,1777938758000,-500.0,0.00042487,60]
[421601705,1777938758000,-500.0,0.00042487,60]
[421601701,1777938758000,-500.0,0.00042487,60]
[421601704,1777938758000,-500.0,0.00042487,60]
[421601712,1777938758000,-187.55517186,0.00042487,120]
[421601714,1777938758000,-160.55253655,0.00042487,30]
[421601717,1777938758000,-165.51918472,0.00042487,120]
[421601715,1777938758000,-1424.41121474,0.00042487,120]
[421601718,1777938758000,-787.40320959,0.00042487,30]
[421601720,1777938758000,-190.97857193,0.00042487,10]
[421601719,1777938758000,-512.78404687,0.00042487,120]
[421601716,1777938758000,-153.52098082,0.00042487,30]
[421601721,1777938758000,-270.89880092,0.00042487,120]
[421601722,1777938758000,-229.49606358,0.00042487,120]
[421601751,1777938758000,-194.43986557,0.00042487,30]
[421601711,1777938758000,-186.1,0.00042487,60]
[421601755,1777938758000,-20466.64699646,0.00042487,120]
[421601794,1777938758000,-283.45,0.00042487,120]
[421601795,1777938758000,-1200.0,0.00042487,31]
[421601790,1777938758000,-2855.14995139,0.00042487,30]
[421601787,1777938758000,-2255.49,0.00042487,120]
[421601796,1777938758000,-159.1424716,0.00042487,31]
[421601788,1777938758000,-2020.79700278,0.00042487,2]
[421601789,1777938758000,-3050676.4199,0.00042487,30]
[421601793,1777938758000,-100000.0,0.00042487,30]
[421601792,1777938758000,-500.0,0.00042487,120]
[421601791,1777938758000,-10233.31,0.00042487,120]
[421601797,1777938758000,-12549.96137112,0.00042487,120]
[421601801,1777938758000,-565.0,0.00042487,120]
[421601805,1777938758000,-150.0,0.00042487,120]
[421601799,1777938758000,-71908.20329315,0.00042487,30]
[421601803,1777938758000,-150.0,0.00042487,120]
[421601804,1777938758000,-150.0,0.00042487,120]
[421601798,1777938758000,-1528.68686199,0.00042487,120]
[421601802,1777938758000,-150.0,0.00042487,120]
[421601806,1777938758000,-279.0,0.00042487,120]
[421601800,1777938758000,-317129.21562961,0.00042487,30]
[421601807,1777938758000,-1951.0,0.00042487,120]
[421601808,1777938758000,-308613.21278463,0.00042487,120]
[421601810,1777938758000,-2686574.99265013,0.00042487,60]
[421601813,1777938758000,-9725.0,0.00042487,30]
[421601814,1777938758000,-9725.0,0.00042487,30]
[421601809,1777938758000,-12693.78229801,0.00042487,120]
[421601812,1777938758000,-9725.0,0.00042487,30]
[421601786,1777938758000,-8213.8,0.00042487,60]
[421601784,1777938758000,-118483.66314363,0.00042487,60]
[421601811,1777938758000,-1282735.20612076,0.00042487,30]
[421601783,1777938758000,-25227.54959202,0.00042487,120]
[421601785,1777938758000,-534.52430307,0.00042487,120]
[421601756,1777938758000,-387593.2395693,0.00042487,120]
[421601752,1777938758000,-515.6573732,0.00042487,2]
[421601758,1777938758000,-447.3612434,0.00042487,120]
[421601759,1777938758000,-1298.785494,0.00042487,120]
[421601769,1777938758000,-489.0,0.00042487,90]
[421601761,1777938758000,-500000.0,0.00042487,120]
[421601763,1777938758000,-341.28,0.00042487,120]
[421601762,1777938758000,-500000.0,0.00042487,120]
[421601760,1777938758000,-300000.0,0.00042487,120]
[421601767,1777938758000,-504.3307596,0.00042487,120]
[421601764,1777938758000,-500000.0,0.00042487,120]
[421601765,1777938758000,-2484.83508948,0.00042487,60]
[421601766,1777938758000,-291.39570964,0.00042487,60]
[421601749,1777938758000,-673.77498005,0.00042487,120]
[421601770,1777938758000,-683.0,0.00042487,120]
[421601768,1777938758000,-502258.0,0.00042487,60]
[421601781,1777938758000,-55936.85136416,0.00042487,60]
[421601778,1777938758000,-5031.20652792,0.00042487,120]
[421601771,1777938758000,-4589.29331612,0.00042487,30]
[421601774,1777938758000,-28554.0,0.00042487,120]
[421601780,1777938758000,-821654.57,0.00042487,30]
[421601779,1777938758000,-157.21278787,0.00042487,30]
[421601777,1777938758000,-317.0,0.00042487,30]
[421601773,1777938758000,-243.45135138,0.00042487,120]
[421601775,1777938758000,-3247288.90172411,0.00042487,120]
[421601772,1777938758000,-25082.56824627,0.00042487,30]
[421601776,1777938758000,-388849.0,0.00042487,120]
[421601782,1777938758000,-297.3,0.00042487,120]
[421601847,1777938759000,-60839.53,0.00042487,120]
[421601845,1777938759000,-60839.53,0.00042487,120]
[421601855,1777938759000,-60839.53,0.00042487,120]
[421601856,1777938759000,-60839.69,0.00042487,120]
[421601857,1777938759000,-20319.4624826,0.00042487,2]
[421601846,1777938759000,-60839.53,0.00042487,120]
[421601844,1777938759000,-60839.53,0.00042487,120]
[421601848,1777938759000,-60839.53,0.00042487,120]
[421601849,1777938759000,-60839.53,0.00042487,120]
[421601851,1777938759000,-60839.53,0.00042487,120]
[421601869,1777938759000,-25146.77805685,0.00042487,60]
[421601850,1777938759000,-60839.53,0.00042487,120]
[421601853,1777938759000,-60839.53,0.00042487,120]
[421601854,1777938759000,-60839.53,0.00042487,120]
[421601859,1777938759000,-168.08920643,0.00042487,120]
[421601843,1777938759000,-60839.53,0.00042487,120]
[421601870,1777938759000,-3162.9498604,0.00042487,30]
[421601861,1777938759000,-188.14,0.00042487,120]
[421601858,1777938759000,-270.02,0.00042487,120]
[421601860,1777938759000,-229.96,0.00042487,120]
[421601862,1777938759000,-5100.0,0.00042487,37]
[421601868,1777938759000,-506.17322339,0.00042487,120]
[421601866,1777938759000,-4457.79191696,0.00042487,60]
[421601852,1777938759000,-60839.53,0.00042487,120]
[421601842,1777938759000,-60839.53,0.00042487,120]
[421601837,1777938759000,-1117.99999999,0.00042487,30]
[421601836,1777938759000,-18693.0,0.00042487,120]
[421601863,1777938759000,-1118.0,0.00042487,30]
[421601816,1777938759000,-970.35275,0.00042487,120]
[421601818,1777938759000,-160.09818919,0.00042487,120]
[421601817,1777938759000,-7678.66962868,0.00042487,60]
[421601819,1777938759000,-5000.0,0.00042487,120]
[421601815,1777938759000,-9756.7,0.00042487,30]
[421601823,1777938759000,-8002.7870104,0.00042487,30]
[421601820,1777938759000,-1118.0,0.00042487,30]
[421601824,1777938759000,-38315.14952818,0.00042487,120]
[421601822,1777938759000,-473.72114334,0.00042487,30]
[421601821,1777938759000,-4665.06773129,0.00042487,2]
[421601834,1777938759000,-1000.0,0.00042487,120]
[421601830,1777938759000,-50000.0,0.00042487,53]
[421601831,1777938759000,-50000.0,0.00042487,54]
[421601825,1777938759000,-50000.0,0.00042487,47]
[421601827,1777938759000,-50000.0,0.00042487,50]
[421601828,1777938759000,-50000.0,0.00042487,51]
[421601826,1777938759000,-50000.0,0.00042487,49]
[421601833,1777938759000,-4034.9,0.00042487,120]
[421601835,1777938759000,-1118.0,0.00042487,30]
[421601840,1777938759000,-60839.53,0.00042487,120]
[421601838,1777938759000,-350.92,0.00042487,120]
[421601839,1777938759000,-60839.53,0.00042487,120]
[421601841,1777938759000,-60839.53,0.00042487,120]
[421601832,1777938759000,-50000.0,0.00042487,55]
[421601829,1777938759000,-50000.0,0.00042487,52]
[421601864,1777938759000,-65206.56877566,0.00042487,120]
[421601867,1777938759000,-152.2064143,0.00042487,120]
[421601899,1777938759000,-590.86806412,0.00042487,120]
[421601900,1777938759000,-590.86806412,0.00042487,120]
[421601901,1777938759000,-590.86806412,0.00042487,120]
[421601902,1777938759000,-590.86806412,0.00042487,120]
[421601905,1777938759000,-590.86806412,0.00042487,120]
[421601904,1777938759000,-590.86806412,0.00042487,120]
[421601903,1777938759000,-590.86806412,0.00042487,120]
[421601906,1777938759000,-590.86806412,0.00042487,120]
[421601913,1777938759000,-590.86806412,0.00042487,120]
[421601907,1777938759000,-590.86806412,0.00042487,120]
[421601916,1777938759000,-590.86806412,0.00042487,120]
[421601897,1777938759000,-590.86806412,0.00042487,120]
[421601911,1777938759000,-590.86806412,0.00042487,120]
[421601912,1777938759000,-590.86806412,0.00042487,120]
[421601914,1777938759000,-590.86806412,0.00042487,120]
[421601915,1777938759000,-590.86806412,0.00042487,120]
[421601910,1777938759000,-590.86806412,0.00042487,120]
[421601917,1777938759000,-590.86806412,0.00042487,120]
[421601919,1777938759000,-590.86806412,0.00042487,120]
[421601918,1777938759000,-590.86806412,0.00042487,120]
[421601921,1777938759000,-196.95602134,0.00042487,120]
[421601920,1777938759000,-590.86806412,0.00042487,120]
[421601922,1777938759000,-196.95602134,0.00042487,120]
[421601865,1777938759000,-36181.85405545,0.00042487,120]
[421601909,1777938759000,-590.86806412,0.00042487,120]
[421601898,1777938759000,-590.86806412,0.00042487,120]
[421601908,1777938759000,-590.86806412,0.00042487,120]
[421601892,1777938759000,-590.86806412,0.00042487,120]
[421601871,1777938759000,-122276.02030783,0.00042487,120]
[421601895,1777938759000,-590.86806412,0.00042487,120]
[421601872,1777938759000,-2493.0,0.00042487,30]
[421601873,1777938759000,-355690.62,0.00042487,120]
[421601883,1777938759000,-121796.6222235,0.00042487,2]
[421601876,1777938759000,-1118.0,0.00042487,30]
[421601875,1777938759000,-1118.0,0.00042487,30]
[421601882,1777938759000,-49000.0,0.00042487,120]
[421601874,1777938759000,-1118.0,0.00042487,30]
[421601881,1777938759000,-2999.999999,0.00042487,2]
[421601878,1777938759000,-1118.0,0.00042487,30]
[421601880,1777938759000,-1118.0,0.00042487,30]
[421601877,1777938759000,-1118.0,0.00042487,30]
[421601879,1777938759000,-270.06618631,0.00042487,30]
[421601893,1777938759000,-590.86806412,0.00042487,120]
[421601889,1777938759000,-30037.42977403,0.00042487,30]
[421601894,1777938759000,-590.86806412,0.00042487,120]
[421601896,1777938759000,-590.86806412,0.00042487,120]
[421601890,1777938759000,-107012.98950971,0.00042487,30]
[421601891,1777938759000,-29308.96990842,0.00042487,30]
[421601886,1777938759000,-42844.01926651,0.00042487,30]
[421601887,1777938759000,-26107.89399885,0.00042487,30]
[421601884,1777938759000,-354.484,0.00042487,120]
[421601885,1777938759000,-29255.66646628,0.00042487,30]
[421601888,1777938759000,-61730.63905302,0.00042487,30]
[421601962,1777938760000,-81079.043,0.00042487,120]
[421601964,1777938760000,-6399.25931034,0.00042487,120]
[421601963,1777938760000,-6399.25931034,0.00042487,120]
[421601965,1777938760000,-6399.25931034,0.00042487,120]
[421601955,1777938760000,-150.24,0.00042487,2]
[421601958,1777938760000,-1478.8531611,0.00042487,30]
[421601966,1777938760000,-163.67868417,0.00042487,120]
[421601959,1777938760000,-500.0,0.00042487,65]
[421601957,1777938760000,-23866.93242401,0.00042487,2]
[421601956,1777938760000,-150.24,0.00042487,2]
[421601961,1777938760000,-101516.49626449,0.00042487,120]
[421601960,1777938760000,-1000.0,0.00042487,120]
[421601968,1777938760000,-163.67868417,0.00042487,120]
[421601977,1777938760000,-151.0,0.00042487,30]
[421601967,1777938760000,-163.67868417,0.00042487,120]
[421601972,1777938760000,-151.0,0.00042487,30]
[421601969,1777938760000,-26414.89141643,0.00042487,2]
[421601970,1777938760000,-507.93389142,0.00042487,2]
[421601979,1777938760000,-151.0,0.00042487,30]
[421601973,1777938760000,-565.3,0.00042487,30]
[421601971,1777938760000,-515241.9533516,0.00042487,30]
[421601974,1777938760000,-151.0,0.00042487,30]
[421601976,1777938760000,-151.0,0.00042487,30]
[421601975,1777938760000,-151.0,0.00042487,30]
[421601980,1777938760000,-151.0,0.00042487,30]
[421601982,1777938760000,-151.0,0.00042487,30]
[421601954,1777938760000,-150.24,0.00042487,2]
[421601978,1777938760000,-151.0,0.00042487,30]
[421601950,1777938760000,-150.24,0.00042487,2]
[421601925,1777938760000,-50000.0,0.00042487,120]
[421601946,1777938760000,-150.24,0.00042487,2]
[421601981,1777938760000,-151.0,0.00042487,30]
[421601924,1777938760000,-5081.56681909,0.00042487,5]
[421601923,1777938760000,-196.95602134,0.00042487,120]
[421601926,1777938760000,-5428.657975,0.00042487,5]
[421601927,1777938760000,-18216.33676374,0.00042487,5]
[421601928,1777938760000,-213868.11794726,0.00042487,30]
[421601929,1777938760000,-78686.65707342,0.00042487,14]
[421601931,1777938760000,-205999.999969,0.00042487,32]
[421601940,1777938760000,-150.24,0.00042487,2]
[421601942,1777938760000,-150.24,0.00042487,2]
[421601939,1777938760000,-150.24,0.00042487,2]
[421601941,1777938760000,-150.24,0.00042487,2]
[421601932,1777938760000,-500.0,0.00042487,2]
[421601948,1777938760000,-150.24,0.00042487,2]
[421601934,1777938760000,-500.0,0.00042487,2]
[421601930,1777938760000,-25000.0,0.00042487,30]
[421601935,1777938760000,-273.86217613,0.00042487,2]
[421601936,1777938760000,-170.73915908,0.00042487,120]
[421601937,1777938760000,-150.3,0.00042487,2]
[421601938,1777938760000,-150.24,0.00042487,2]
[421601944,1777938760000,-150.24,0.00042487,2]
[421601945,1777938760000,-150.24,0.00042487,2]
[421601943,1777938760000,-150.24,0.00042487,2]
[421601947,1777938760000,-150.24,0.00042487,2]
[421601951,1777938760000,-150.24,0.00042487,2]
[421601952,1777938760000,-150.24,0.00042487,2]
[421601949,1777938760000,-150.24,0.00042487,2]
[421601953,1777938760000,-150.24,0.00042487,2]
[421601933,1777938760000,-500.0,0.00042487,2]
[421601991,1777938760000,-151.0,0.00042487,30]
[421602044,1777938760000,-151.0,0.00042487,30]
[421601992,1777938760000,-151.0,0.00042487,30]
[421602009,1777938760000,-151.0,0.00042487,30]
[421602020,1777938760000,-276.2,0.00042487,30]
[421602019,1777938760000,-151.0,0.00042487,30]
[421602030,1777938760000,-572.71,0.00042487,30]
[421602023,1777938760000,-151.0,0.00042487,30]
[421602022,1777938760000,-151.0,0.00042487,30]
[421602021,1777938760000,-151.0,0.00042487,30]
[421602028,1777938760000,-151.0,0.00042487,30]
[421602027,1777938760000,-151.0,0.00042487,30]
[421602026,1777938760000,-151.0,0.00042487,30]
[421602024,1777938760000,-151.0,0.00042487,30]
[421602029,1777938760000,-151.0,0.00042487,30]
[421602031,1777938760000,-1656.3,0.00042487,30]
[421602033,1777938760000,-151.0,0.00042487,30]
[421602043,1777938760000,-151.0,0.00042487,30]
[421602032,1777938760000,-3788.34917165,0.00042487,2]
[421602034,1777938760000,-151.0,0.00042487,30]
[421602042,1777938760000,-151.0,0.00042487,30]
[421602035,1777938760000,-151.0,0.00042487,30]
[421602036,1777938760000,-183.66,0.00042487,30]
[421602038,1777938760000,-151.0,0.00042487,30]
[421602037,1777938760000,-153.03,0.00042487,30]
[421602040,1777938760000,-151.0,0.00042487,30]
[421602039,1777938760000,-1573.7,0.00042487,30]
[421602041,1777938760000,-151.0,0.00042487,30]
[421602045,1777938760000,-151.0,0.00042487,30]
[421601983,1777938760000,-291.53637219,0.00042487,120]
[421602017,1777938760000,-151.0,0.00042487,30]
[421602013,1777938760000,-151.0,0.00042487,30]
[421602025,1777938760000,-153.65,0.00042487,30]
[421602012,1777938760000,-151.0,0.00042487,30]
[421602015,1777938760000,-151.0,0.00042487,30]
[421601984,1777938760000,-291.53637219,0.00042487,120]
[421601987,1777938760000,-291.53637219,0.00042487,120]
[421601988,1777938760000,-291.53637219,0.00042487,120]
[421601990,1777938760000,-151.0,0.00042487,30]
[421601985,1777938760000,-291.53637219,0.00042487,120]
[421601986,1777938760000,-291.53637219,0.00042487,120]
[421602004,1777938760000,-195.17,0.00042487,30]
[421601994,1777938760000,-151.0,0.00042487,30]
[421602005,1777938760000,-151.0,0.00042487,30]
[421601993,1777938760000,-151.0,0.00042487,30]
[421601995,1777938760000,-151.0,0.00042487,30]
[421602003,1777938760000,-151.52,0.00042487,30]
[421602001,1777938760000,-151.0,0.00042487,30]
[421601989,1777938760000,-291.53637219,0.00042487,120]
[421602018,1777938760000,-151.0,0.00042487,30]
[421602011,1777938760000,-151.0,0.00042487,30]
[421602016,1777938760000,-1573.7,0.00042487,30]
[421602010,1777938760000,-151.0,0.00042487,30]
[421601996,1777938760000,-2561.71969873,0.00042487,120]
[421602014,1777938760000,-153.05,0.00042487,30]
[421602008,1777938760000,-151.0,0.00042487,30]
[421602007,1777938760000,-291.53637217,0.00042487,120]
[421601999,1777938760000,-151.0,0.00042487,30]
[421602002,1777938760000,-151.0,0.00042487,30]
[421602000,1777938760000,-151.0,0.00042487,30]
[421601998,1777938760000,-246.83,0.00042487,30]
[421601997,1777938760000,-151.0,0.00042487,30]
[421602006,1777938760000,-151.0,0.00042487,30]
[421602089,1777938761000,-151.0,0.00042487,30]
[421602086,1777938761000,-151.0,0.00042487,30]
[421602094,1777938761000,-151.0,0.00042487,30]
[421602085,1777938761000,-151.0,0.00042487,30]
[421602083,1777938761000,-151.0,0.00042487,30]
[421602074,1777938761000,-151.0,0.00042487,30]
[421602093,1777938761000,-233.11,0.00042487,30]
[421602082,1777938761000,-151.0,0.00042487,30]
[421602079,1777938761000,-151.0,0.00042487,30]
[421602077,1777938761000,-1573.71,0.00042487,30]
[421602076,1777938761000,-151.0,0.00042487,30]
[421602088,1777938761000,-151.0,0.00042487,30]
[421602084,1777938761000,-244.13,0.00042487,30]
[421602087,1777938761000,-151.0,0.00042487,30]
[421602099,1777938761000,-151.0,0.00042487,30]
[421602091,1777938761000,-151.0,0.00042487,30]
[421602092,1777938761000,-1582.89,0.00042487,30]
[421602095,1777938761000,-678.3,0.00042487,30]
[421602098,1777938761000,-154.35,0.00042487,30]
[421602097,1777938761000,-151.0,0.00042487,30]
[421602106,1777938761000,-151.0,0.00042487,30]
[421602096,1777938761000,-151.0,0.00042487,30]
[421602107,1777938761000,-872.9,0.00042487,30]
[421602101,1777938761000,-151.0,0.00042487,30]
[421602104,1777938761000,-151.0,0.00042487,30]
[421602105,1777938761000,-1573.7,0.00042487,30]
[421602100,1777938761000,-151.0,0.00042487,30]
[421602103,1777938761000,-151.0,0.00042487,30]
[421602090,1777938761000,-1573.7,0.00042487,30]
[421602073,1777938761000,-151.0,0.00042487,30]
[421602055,1777938761000,-151.0,0.00042487,30]
[421602078,1777938761000,-151.0,0.00042487,30]
[421602102,1777938761000,-151.0,0.00042487,30]
[421602047,1777938761000,-153.44,0.00042487,30]
[421602046,1777938761000,-1573.7,0.00042487,30]
[421602048,1777938761000,-151.0,0.00042487,30]
[421602053,1777938761000,-151.0,0.00042487,30]
[421602054,1777938761000,-151.0,0.00042487,30]
[421602051,1777938761000,-151.0,0.00042487,30]
[421602049,1777938761000,-151.0,0.00042487,30]
[421602052,1777938761000,-151.0,0.00042487,30]
[421602050,1777938761000,-151.0,0.00042487,30]
[421602059,1777938761000,-1573.71,0.00042487,30]
[421602056,1777938761000,-151.0,0.00042487,30]
[421602060,1777938761000,-151.0,0.00042487,30]
[421602066,1777938761000,-151.0,0.00042487,30]
[421602065,1777938761000,-1573.7,0.00042487,30]
[421602057,1777938761000,-151.0,0.00042487,30]
[421602062,1777938761000,-151.0,0.00042487,30]
[421602067,1777938761000,-152.07,0.00042487,30]
[421602064,1777938761000,-151.0,0.00042487,30]
[421602068,1777938761000,-151.0,0.00042487,30]
[421602063,1777938761000,-151.0,0.00042487,30]
[421602061,1777938761000,-151.0,0.00042487,30]
[421602058,1777938761000,-151.43,0.00042487,30]
[421602081,1777938761000,-1573.7,0.00042487,30]
[421602070,1777938761000,-151.0,0.00042487,30]
[421602080,1777938761000,-151.0,0.00042487,30]
[421602069,1777938761000,-151.0,0.00042487,30]
[421602072,1777938761000,-1573.7,0.00042487,30]
[421602071,1777938761000,-151.0,0.00042487,30]
[421602075,1777938761000,-154.69,0.00042487,30]
[421602110,1777938761000,-151.0,0.00042487,30]
[421602108,1777938761000,-151.0,0.00042487,30]
[421602111,1777938761000,-1573.7,0.00042487,30]
[421602143,1777938761000,-151.0,0.00042487,30]
[421602144,1777938761000,-151.0,0.00042487,30]
[421602156,1777938761000,-489.23045926,0.000425,120]
[421602155,1777938761000,-3939.0778432,0.000425,120]
[421602158,1777938761000,-331.94058066,0.000425,120]
[421602157,1777938761000,-1020.0,0.000425,120]
[421602147,1777938761000,-151.0,0.00042487,30]
[421602148,1777938761000,-151.0,0.00042487,30]
[421602149,1777938761000,-151.0,0.00042487,30]
[421602159,1777938761000,-153.0,0.000425,120]
[421602150,1777938761000,-151.0,0.00042487,30]
[421602151,1777938761000,-151.0,0.00042487,30]
[421602152,1777938761000,-151.0,0.00042487,30]
[421602154,1777938761000,-789.83375792,0.0004249,30]
[421602142,1777938761000,-151.72,0.00042487,30]
[421602160,1777938761000,-200.05,0.000425,90]
[421602161,1777938761000,-2091.91987382,0.000425,120]
[421602167,1777938761000,-177.0,0.00042554,120]
[421602166,1777938761000,-494.29189016,0.00042554,120]
[421602162,1777938761000,-344.49571485,0.00042505,2]
[421602168,1777938761000,-159.0,0.00042554,120]
[421602165,1777938761000,-396.51,0.0004254,120]
[421602163,1777938761000,-575.425058,0.00042506,79]
[421602170,1777938761000,-203.0,0.00042554,120]
[421602169,1777938761000,-152.0,0.00042554,120]
[421602172,1777938761000,-204.0,0.00042554,120]
[421602171,1777938761000,-465.0,0.00042554,120]
[421602173,1777938761000,-159.0,0.00042554,120]
[421602109,1777938761000,-639.3,0.00042487,30]
[421602174,1777938761000,-287.0,0.00042554,120]
[421602164,1777938761000,-409.1,0.00042515,120]
[421602137,1777938761000,-151.0,0.00042487,30]
[421602153,1777938761000,-250.0,0.00042488,30]
[421602141,1777938761000,-151.0,0.00042487,30]
[421602139,1777938761000,-151.0,0.00042487,30]
[421602114,1777938761000,-151.0,0.00042487,30]
[421602120,1777938761000,-151.0,0.00042487,30]
[421602112,1777938761000,-151.0,0.00042487,30]
[421602118,1777938761000,-151.0,0.00042487,30]
[421602116,1777938761000,-179.77162917,0.00042487,120]
[421602117,1777938761000,-151.0,0.00042487,30]
[421602119,1777938761000,-151.0,0.00042487,30]
[421602113,1777938761000,-151.29,0.00042487,30]
[421602122,1777938761000,-151.0,0.00042487,30]
[421602132,1777938761000,-151.0,0.00042487,30]
[421602133,1777938761000,-151.0,0.00042487,30]
[421602124,1777938761000,-151.0,0.00042487,30]
[421602127,1777938761000,-151.0,0.00042487,30]
[421602125,1777938761000,-151.0,0.00042487,30]
[421602115,1777938761000,-151.0,0.00042487,30]
[421602121,1777938761000,-151.0,0.00042487,30]
[421602126,1777938761000,-151.0,0.00042487,30]
[421602136,1777938761000,-152.11,0.00042487,30]
[421602138,1777938761000,-151.0,0.00042487,30]
[421602134,1777938761000,-400.0,0.00042487,120]
[421602146,1777938761000,-151.0,0.00042487,30]
[421602145,1777938761000,-151.0,0.00042487,30]
[421602140,1777938761000,-151.0,0.00042487,30]
[421602129,1777938761000,-151.0,0.00042487,30]
[421602131,1777938761000,-151.0,0.00042487,30]
[421602130,1777938761000,-151.0,0.00042487,30]
[421602128,1777938761000,-151.0,0.00042487,30]
[421602123,1777938761000,-151.0,0.00042487,30]
[421602135,1777938761000,-151.45,0.00042487,30]
[421602214,1777938762000,-200.0,0.00042999,30]
[421602217,1777938762000,-537.6845,0.00042999,90]
[421602216,1777938762000,-151.0,0.00042999,30]
[421602226,1777938762000,-1148.61238259,0.00042999,120]
[421602205,1777938762000,-180139.39001774,0.000429,120]
[421602225,1777938762000,-500.0,0.00042999,120]
[421602211,1777938762000,-7142.856,0.00042999,30]
[421602215,1777938762000,-1068.11,0.00042999,30]
[421602209,1777938762000,-152.9315034,0.00042992,120]
[421602208,1777938762000,-3900.0,0.00042978,30]
[421602210,1777938762000,-518.5,0.00042999,30]
[421602223,1777938762000,-151.0,0.00042999,90]
[421602227,1777938762000,-151.0,0.00042999,120]
[421602222,1777938762000,-1107.63007,0.00042999,90]
[421602228,1777938762000,-7681.20591386,0.00042999,120]
[421602220,1777938762000,-276.85385391,0.00042999,90]
[421602218,1777938762000,-7407.141672,0.00042999,90]
[421602219,1777938762000,-500.0,0.00042999,90]
[421602224,1777938762000,-557.5788265,0.00042999,120]
[421602239,1777938762000,-151.0,0.00042999,30]
[421602229,1777938762000,-204.73485834,0.00042999,120]
[421602240,1777938762000,-151.0,0.00042999,90]
[421602236,1777938762000,-500.0,0.00042999,30]
[421602237,1777938762000,-500.0,0.00042999,90]
[421602230,1777938762000,-156.587,0.00042999,30]
[421602231,1777938762000,-162.380719,0.00042999,90]
[421602233,1777938762000,-518.5,0.00042999,30]
[421602206,1777938762000,-335.59,0.00042937,120]
[421602221,1777938762000,-200.0,0.00042999,90]
[421602201,1777938762000,-151.0,0.00042874,60]
[421602183,1777938762000,-409.1,0.00042615,120]
[421602207,1777938762000,-152.9315034,0.00042944,120]
[421602232,1777938762000,-215.76797475,0.00042999,120]
[421602184,1777938762000,-400.0,0.00042705,2]
[421602185,1777938762000,-409.1,0.00042715,120]
[421602186,1777938762000,-490.24869522,0.0004274,120]
[421602176,1777938762000,-156.0,0.00042554,120]
[421602182,1777938762000,-672.20153593,0.000426,120]
[421602181,1777938762000,-218.19914079,0.000426,120]
[421602179,1777938762000,-250.0,0.00042567,30]
[421602178,1777938762000,-250.0,0.00042554,30]
[421602180,1777938762000,-250.05,0.00042587,30]
[421602175,1777938762000,-153.0,0.00042554,120]
[421602177,1777938762000,-482.0,0.00042554,120]
[421602187,1777938762000,-222.12,0.0004275,120]
[421602189,1777938762000,-1006.76,0.000428,120]
[421602204,1777938762000,-1745.95516865,0.000429,120]
[421602190,1777938762000,-50000.0,0.000428,30]
[421602192,1777938762000,-409.42350167,0.00042815,120]
[421602193,1777938762000,-8038.13166033,0.0004282,2]
[421602197,1777938762000,-1191.11104075,0.00042874,60]
[421602194,1777938762000,-150.0,0.00042834,2]
[421602196,1777938762000,-500.0,0.00042874,60]